[Event "Late-Titled-Tuesday-Blitz-March-05-2024"]
[Site "Chess.com"]
[Date "2024.03.05"]
[Round "3"]
[White "Zhigalko_Sergei"]
[Black "Gennady_Kozlov"]
[Result "0-1"]
[WhiteElo "2884"]
[BlackElo "2689"]
[TimeControl "180+1"]
[EndTime "14:28:13 PST"]
[Termination "Gennady_Kozlov won on time"]

1. e4 {[%clk 0:03:00.9]} 1... e6 {[%clk 0:02:59.9]} 2. d4 {[%clk 0:03:00.6]}
2... d5 {[%clk 0:03:00.3]} 3. e5 {[%clk 0:03:01]} 3... c5 {[%clk 0:03:00.4]} 4.
c3 {[%clk 0:03:01]} 4... Nc6 {[%clk 0:03:01.2]} 5. Nf3 {[%clk 0:03:00.8]} 5...
Bd7 {[%clk 0:03:01.7]} 6. Be2 {[%clk 0:03:01]} 6... Qb6 {[%clk 0:03:00.2]} 7.
O-O {[%clk 0:02:59.1]} 7... f6 {[%clk 0:03:00.5]} 8. dxc5 {[%clk 0:02:30.3]}
8... Bxc5 {[%clk 0:02:59.3]} 9. b4 {[%clk 0:02:30.8]} 9... Be7 {[%clk
0:02:59.1]} 10. Bf4 {[%clk 0:02:19.2]} 10... fxe5 {[%clk 0:02:48.9]} 11. Nxe5
{[%clk 0:02:19.4]} 11... Nxe5 {[%clk 0:02:48.3]} 12. Bxe5 {[%clk 0:02:20.3]}
12... Nf6 {[%clk 0:02:48.7]} 13. Bh5+ {[%clk 0:02:11.6]} 13... g6 {[%clk
0:02:44.2]} 14. Bg4 {[%clk 0:02:05.8]} 14... O-O {[%clk 0:02:41]} 15. Nd2 {[%clk
0:02:05.6]} 15... Nxg4 {[%clk 0:02:36.5]} 16. Qxg4 {[%clk 0:02:05.4]} 16... Bf6
{[%clk 0:02:37.3]} 17. Nf3 {[%clk 0:02:01.2]} 17... Rae8 {[%clk 0:02:14.1]} 18.
Rfe1 {[%clk 0:01:59.1]} 18... Bc8 {[%clk 0:02:12.2]} 19. h4 {[%clk 0:01:57.1]}
19... Bxe5 {[%clk 0:02:12.3]} 20. Rxe5 {[%clk 0:01:54.3]} 20... Qc7 {[%clk
0:02:11]} 21. Qd4 {[%clk 0:01:48.5]} 21... b6 {[%clk 0:02:08.4]} 22. Rae1 {[%clk
0:01:33.7]} 22... h6 {[%clk 0:01:50.6]} 23. Qe3 {[%clk 0:01:29.5]} 23... Qg7
{[%clk 0:01:47.3]} 24. Nd4 {[%clk 0:01:27.6]} 24... Kh7 {[%clk 0:01:46.1]} 25.
Qg3 {[%clk 0:01:26.4]} 25... Qf6 {[%clk 0:01:41.9]} 26. R1e3 {[%clk 0:01:16.6]}
26... Re7 {[%clk 0:01:38.7]} 27. a4 {[%clk 0:01:07.3]} 27... Ref7 {[%clk
0:01:31.8]} 28. f3 {[%clk 0:00:59.6]} 28... Re7 {[%clk 0:01:25.4]} 29. a5 {[%clk
0:00:55.6]} 29... Rg8 {[%clk 0:01:03.7]} 30. Qe1 {[%clk 0:00:39.4]} 30... Rge8
{[%clk 0:00:59.7]} 31. axb6 {[%clk 0:00:32.6]} 31... axb6 {[%clk 0:01:00.6]} 32.
b5 {[%clk 0:00:33.3]} 32... Bd7 {[%clk 0:00:57.8]} 33. Qg3 {[%clk 0:00:25.8]}
33... Ra8 {[%clk 0:00:52.6]} 34. Kh2 {[%clk 0:00:24.9]} 34... Ra4 {[%clk
0:00:49.4]} 35. Qe1 {[%clk 0:00:23.4]} 35... Rc4 {[%clk 0:00:47]} 36. Rxd5
{[%clk 0:00:19.1]} 36... Rxc3 {[%clk 0:00:33.3]} 37. Rd6 {[%clk 0:00:01.1]}
37... Qf4+ {[%clk 0:00:25.8]} 0-1

[Event "Late-Titled-Tuesday-Blitz-March-05-2024"]
[Site "Chess.com"]
[Date "2024.03.05"]
[Round "3"]
[White "Fh2411"]
[Black "jamengrand"]
[Result "1-0"]
[WhiteElo "2653"]
[BlackElo "2482"]
[TimeControl "180+1"]
[EndTime "14:28:14 PST"]
[Termination "Fh2411 won by resignation"]

1. d4 {[%clk 0:02:59.8]} 1... d5 {[%clk 0:03:00.1]} 2. Nf3 {[%clk 0:02:58.8]}
2... Nf6 {[%clk 0:03:00.3]} 3. Bf4 {[%clk 0:02:52.9]} 3... g6 {[%clk 0:03:00.2]}
4. e3 {[%clk 0:02:52.9]} 4... Bg7 {[%clk 0:02:58.6]} 5. h3 {[%clk 0:02:52.4]}
5... O-O {[%clk 0:02:58.7]} 6. Nbd2 {[%clk 0:02:50.1]} 6... c5 {[%clk
0:02:56.5]} 7. c3 {[%clk 0:02:49.8]} 7... Nc6 {[%clk 0:02:50.4]} 8. dxc5 {[%clk
0:02:45.8]} 8... a5 {[%clk 0:02:44.7]} 9. a4 {[%clk 0:02:41.4]} 9... Nd7 {[%clk
0:02:42.2]} 10. Nb3 {[%clk 0:02:36.9]} 10... e5 {[%clk 0:02:26.9]} 11. Bg5
{[%clk 0:02:29.6]} 11... Bf6 {[%clk 0:02:27.1]} 12. Bh6 {[%clk 0:02:28.4]} 12...
Re8 {[%clk 0:02:18.1]} 13. Qxd5 {[%clk 0:02:25.5]} 13... e4 {[%clk 0:02:02.4]}
14. Bc4 {[%clk 0:02:14.4]} 14... Qe7 {[%clk 0:01:57.2]} 15. Nfd2 {[%clk
0:01:59.5]} 15... Nde5 {[%clk 0:01:48.3]} 16. Qxe4 {[%clk 0:01:49.5]} 16... Bf5
{[%clk 0:01:44]} 17. Qf4 {[%clk 0:01:48.2]} 17... Bd3 {[%clk 0:01:33.2]} 18. Rd1
{[%clk 0:01:16.6]} 18... g5 {[%clk 0:01:17.3]} 19. Qg3 {[%clk 0:00:57.6]} 19...
Nxc4 {[%clk 0:01:14.9]} 20. Nxc4 {[%clk 0:00:52.4]} 20... Bxc4 {[%clk 0:01:15]}
21. Nd4 {[%clk 0:00:53]} 21... Rad8 {[%clk 0:01:00.8]} 22. h4 {[%clk 0:00:45.3]}
22... Nxd4 {[%clk 0:00:54.9]} 23. cxd4 {[%clk 0:00:44.6]} 23... Kh8 {[%clk
0:00:45.3]} 24. Bxg5 {[%clk 0:00:36.9]} 24... h6 {[%clk 0:00:33.3]} 25. Bxf6+
{[%clk 0:00:25.4]} 25... Qxf6 {[%clk 0:00:33.2]} 26. Qf3 {[%clk 0:00:26]} 26...
Qg6 {[%clk 0:00:30.3]} 27. Rh3 {[%clk 0:00:14.9]} 27... Bd5 {[%clk 0:00:29.3]}
28. Qf4 {[%clk 0:00:12.3]} 28... Re4 {[%clk 0:00:21.7]} 29. Qc7 {[%clk 0:00:12]}
29... Rg8 {[%clk 0:00:16]} 30. Rg3 {[%clk 0:00:12.2]} 30... Rg4 {[%clk
0:00:16.4]} 31. Qe5+ {[%clk 0:00:08.7]} 31... f6 {[%clk 0:00:14.2]} 32. Qxd5
{[%clk 0:00:09]} 32... Rxg3 {[%clk 0:00:14.7]} 33. fxg3 {[%clk 0:00:09.9]} 33...
Qxg3+ {[%clk 0:00:14.9]} 34. Ke2 {[%clk 0:00:10.5]} 34... Qxg2+ {[%clk
0:00:14.9]} 35. Qxg2 {[%clk 0:00:11.4]} 35... Rxg2+ {[%clk 0:00:14.2]} 36. Kd3
{[%clk 0:00:11.7]} 36... Rxb2 {[%clk 0:00:14.9]} 37. Kc4 {[%clk 0:00:11.3]}
37... Rb4+ {[%clk 0:00:15]} 38. Kd5 {[%clk 0:00:11.9]} 38... Rxa4 {[%clk
0:00:15.5]} 39. Rb1 {[%clk 0:00:12.2]} 39... Ra3 {[%clk 0:00:15.6]} 40. Rxb7
{[%clk 0:00:12.6]} 40... Rxe3 {[%clk 0:00:15.7]} 41. c6 {[%clk 0:00:13.4]} 1-0

[Event "Late-Titled-Tuesday-Blitz-March-05-2024"]
[Site "Chess.com"]
[Date "2024.03.05"]
[Round "3"]
[White "xasid81"]
[Black "Vse_po_kaify"]
[Result "0-1"]
[WhiteElo "2551"]
[BlackElo "2409"]
[TimeControl "180+1"]
[EndTime "14:28:15 PST"]
[Termination "Vse_po_kaify won by resignation"]

1. e4 {[%clk 0:02:55.3]} 1... e5 {[%clk 0:02:59.3]} 2. Nf3 {[%clk 0:02:55.1]}
2... Nc6 {[%clk 0:02:59.6]} 3. Bb5 {[%clk 0:02:54.7]} 3... a6 {[%clk 0:02:59.6]}
4. Bxc6 {[%clk 0:02:54.8]} 4... dxc6 {[%clk 0:03:00.5]} 5. d4 {[%clk 0:02:53.1]}
5... exd4 {[%clk 0:02:55.5]} 6. Qxd4 {[%clk 0:02:54]} 6... Qxd4 {[%clk
0:02:51.4]} 7. Nxd4 {[%clk 0:02:54.9]} 7... c5 {[%clk 0:02:42.5]} 8. Ne2 {[%clk
0:02:52.6]} 8... Bd7 {[%clk 0:02:25.1]} 9. O-O {[%clk 0:02:52.4]} 9... O-O-O
{[%clk 0:02:22]} 10. Nbc3 {[%clk 0:02:52.9]} 10... Bc6 {[%clk 0:02:21.6]} 11. f3
{[%clk 0:02:53]} 11... Ne7 {[%clk 0:02:14.7]} 12. Be3 {[%clk 0:02:53]} 12... Ng6
{[%clk 0:02:12]} 13. Rad1 {[%clk 0:02:53.3]} 13... Be7 {[%clk 0:02:11.1]} 14.
Rxd8+ {[%clk 0:02:53.7]} 14... Rxd8 {[%clk 0:02:10.2]} 15. Rd1 {[%clk
0:02:54.6]} 15... Re8 {[%clk 0:01:53.7]} 16. Nf4 {[%clk 0:02:52.6]} 16... Ne5
{[%clk 0:01:50.1]} 17. b3 {[%clk 0:02:48.3]} 17... c4 {[%clk 0:01:44.4]} 18.
Nfd5 {[%clk 0:02:45.6]} 18... Bf8 {[%clk 0:01:31]} 19. Bf4 {[%clk 0:02:41.4]}
19... cxb3 {[%clk 0:01:26.2]} 20. cxb3 {[%clk 0:02:42.3]} 20... b6 {[%clk
0:00:57.8]} 21. Bg3 {[%clk 0:02:38.6]} 21... Kb7 {[%clk 0:00:57.4]} 22. Bf2
{[%clk 0:02:37.2]} 22... a5 {[%clk 0:00:56.2]} 23. h3 {[%clk 0:02:34.4]} 23...
Nd7 {[%clk 0:00:54.8]} 24. Bg3 {[%clk 0:02:30.4]} 24... Ne5 {[%clk 0:00:46.8]}
25. a4 {[%clk 0:02:29.6]} 25... f6 {[%clk 0:00:46.6]} 26. Nb5 {[%clk 0:02:28.6]}
26... Bc5+ {[%clk 0:00:43.3]} 27. Kf1 {[%clk 0:02:18.6]} 27... Bxb5+ {[%clk
0:00:42.7]} 28. axb5 {[%clk 0:02:18.3]} 28... Ra8 {[%clk 0:00:42.4]} 29. Bxe5
{[%clk 0:02:16]} 29... fxe5 {[%clk 0:00:42.3]} 30. Nc3 {[%clk 0:02:02.3]} 30...
Bd4 {[%clk 0:00:41.7]} 31. Na4 {[%clk 0:02:02.3]} 31... h5 {[%clk 0:00:37.3]}
32. Rc1 {[%clk 0:02:00.7]} 32... Rf8 {[%clk 0:00:31.6]} 33. Ke2 {[%clk
0:02:00.1]} 33... Rf6 {[%clk 0:00:30.9]} 34. Rc2 {[%clk 0:01:51.4]} 34... c6
{[%clk 0:00:25.5]} 35. bxc6+ {[%clk 0:01:43]} 35... Rxc6 {[%clk 0:00:26.4]} 36.
Rd2 {[%clk 0:01:38.9]} 36... b5 {[%clk 0:00:25.9]} 37. Nb2 {[%clk 0:01:38.5]}
37... Rc3 {[%clk 0:00:25.9]} 38. f4 {[%clk 0:01:34.3]} 38... Rxb3 {[%clk
0:00:24.7]} 39. Nd3 {[%clk 0:01:33.2]} 39... exf4 {[%clk 0:00:20.6]} 40. Nxf4
{[%clk 0:01:33.1]} 40... Be3 {[%clk 0:00:20.6]} 41. Rd7+ {[%clk 0:01:28.2]}
41... Kc6 {[%clk 0:00:20.6]} 42. Rf7 {[%clk 0:01:28.4]} 42... Bxf4 {[%clk
0:00:20.5]} 43. Rxf4 {[%clk 0:01:29.3]} 43... a4 {[%clk 0:00:20.9]} 44. Rf8
{[%clk 0:01:27.6]} 44... a3 {[%clk 0:00:20.8]} 45. Ra8 {[%clk 0:01:27.2]} 45...
b4 {[%clk 0:00:20.4]} 46. e5 {[%clk 0:01:25]} 46... Kd5 {[%clk 0:00:20]} 47.
Ra5+ {[%clk 0:01:25.2]} 47... Ke6 {[%clk 0:00:20.2]} 48. g4 {[%clk 0:01:25.7]}
48... Rxh3 {[%clk 0:00:18.9]} 49. gxh5 {[%clk 0:01:25.6]} 49... Rxh5 {[%clk
0:00:18.4]} 50. Kd3 {[%clk 0:01:26]} 50... Rh2 {[%clk 0:00:13.4]} 51. Ke4 {[%clk
0:01:24.3]} 51... Re2+ {[%clk 0:00:13.1]} 52. Kd4 {[%clk 0:01:24.6]} 52... a2
{[%clk 0:00:12]} 53. Ra6+ {[%clk 0:01:24.5]} 53... Kf5 {[%clk 0:00:10.7]} 54.
Kd5 {[%clk 0:01:20.4]} 54... Rxe5+ {[%clk 0:00:10.6]} 55. Kc4 {[%clk 0:01:19.6]}
55... Re2 {[%clk 0:00:09.7]} 56. Kxb4 {[%clk 0:01:19.2]} 56... g5 {[%clk
0:00:10.2]} 57. Kc3 {[%clk 0:01:19.3]} 57... g4 {[%clk 0:00:09.9]} 58. Kd3
{[%clk 0:01:19.9]} 58... Rf2 {[%clk 0:00:09.8]} 59. Ke3 {[%clk 0:01:20.3]} 59...
g3 {[%clk 0:00:09.3]} 60. Ra4 {[%clk 0:01:19.3]} 60... Rb2 {[%clk 0:00:06.4]}
61. Kf3 {[%clk 0:01:14.7]} 61... g2 {[%clk 0:00:06.7]} 62. Ra5+ {[%clk
0:01:15.6]} 62... Ke6 {[%clk 0:00:06.8]} 63. Ra6+ {[%clk 0:01:15.9]} 63... Kd7
{[%clk 0:00:07.4]} 64. Ra7+ {[%clk 0:01:16.2]} 64... Kc8 {[%clk 0:00:07.7]} 65.
Rg7 {[%clk 0:01:17.1]} 65... a1=Q {[%clk 0:00:07.3]} 0-1

[Event "Late-Titled-Tuesday-Blitz-March-05-2024"]
[Site "Chess.com"]
[Date "2024.03.05"]
[Round "3"]
[White "Nick12772"]
[Black "Pelusiansky"]
[Result "0-1"]
[WhiteElo "2393"]
[BlackElo "2568"]
[TimeControl "180+1"]
[EndTime "14:28:17 PST"]
[Termination "Pelusiansky won on time"]

1. Nf3 {[%clk 0:03:00.9]} 1... d5 {[%clk 0:02:59.4]} 2. g3 {[%clk 0:03:01.2]}
2... e6 {[%clk 0:02:58.6]} 3. Bg2 {[%clk 0:03:01.5]} 3... Nf6 {[%clk 0:02:59.2]}
4. O-O {[%clk 0:03:02.1]} 4... Be7 {[%clk 0:02:58.9]} 5. d3 {[%clk 0:03:03]}
5... O-O {[%clk 0:02:58.9]} 6. Nbd2 {[%clk 0:03:03.2]} 6... b6 {[%clk
0:02:59.1]} 7. b3 {[%clk 0:03:03.4]} 7... Bb7 {[%clk 0:02:56.2]} 8. Bb2 {[%clk
0:03:04]} 8... a5 {[%clk 0:02:54.5]} 9. a3 {[%clk 0:03:04.2]} 9... Nbd7 {[%clk
0:02:54.5]} 10. Re1 {[%clk 0:03:04.5]} 10... a4 {[%clk 0:02:51.2]} 11. h3 {[%clk
0:02:54.6]} 11... axb3 {[%clk 0:02:50.4]} 12. cxb3 {[%clk 0:02:55.5]} 12... Nc5
{[%clk 0:02:48.3]} 13. Ne5 {[%clk 0:02:44.1]} 13... Nfd7 {[%clk 0:02:31.8]} 14.
d4 {[%clk 0:02:22.9]} 14... Nxe5 {[%clk 0:02:17.5]} 15. dxc5 {[%clk 0:02:22.7]}
15... Nd7 {[%clk 0:02:17.2]} 16. cxb6 {[%clk 0:02:15.9]} 16... c6 {[%clk
0:02:17]} 17. b4 {[%clk 0:02:05.6]} 17... Nxb6 {[%clk 0:02:12.8]} 18. Bd4 {[%clk
0:02:02.5]} 18... Na4 {[%clk 0:02:05.4]} 19. Nb3 {[%clk 0:01:49.5]} 19... Bf6
{[%clk 0:01:50.1]} 20. Na5 {[%clk 0:01:37.6]} 20... Bxd4 {[%clk 0:01:41.9]} 21.
Qxd4 {[%clk 0:01:34.8]} 21... c5 {[%clk 0:01:29]} 22. Qd1 {[%clk 0:01:20.1]}
22... Rxa5 {[%clk 0:01:22.4]} 23. bxa5 {[%clk 0:01:17.6]} 23... Qxa5 {[%clk
0:01:23.3]} 24. Qb3 {[%clk 0:01:07.4]} 24... Bc6 {[%clk 0:01:14.9]} 25. Reb1
{[%clk 0:01:04.8]} 25... g6 {[%clk 0:01:13.3]} 26. Qc2 {[%clk 0:00:50.9]} 26...
Ra8 {[%clk 0:01:05.9]} 27. h4 {[%clk 0:00:50.1]} 27... c4 {[%clk 0:00:59.7]} 28.
h5 {[%clk 0:00:43]} 28... Qc3 {[%clk 0:00:53.4]} 29. Qxc3 {[%clk 0:00:30.7]}
29... Nxc3 {[%clk 0:00:54.3]} 30. Rb2 {[%clk 0:00:31.2]} 30... gxh5 {[%clk
0:00:52.5]} 31. Bf3 {[%clk 0:00:29.7]} 31... Kg7 {[%clk 0:00:47.2]} 32. Bxh5
{[%clk 0:00:29.7]} 32... d4 {[%clk 0:00:45.7]} 33. Rd2 {[%clk 0:00:22.9]} 33...
e5 {[%clk 0:00:44.7]} 34. a4 {[%clk 0:00:12]} 34... Bxa4 {[%clk 0:00:40.7]} 35.
Bf3 {[%clk 0:00:10.9]} 35... Rb8 {[%clk 0:00:38.5]} 36. Bg4 {[%clk 0:00:04.2]}
36... Ne4 {[%clk 0:00:29.1]} 37. Rda2 {[%clk 0:00:03.1]} 37... Bb3 {[%clk
0:00:27.8]} 38. Ra7 {[%clk 0:00:03.1]} 38... c3 {[%clk 0:00:25.6]} 39. Bf3
{[%clk 0:00:03.2]} 39... Ng5 {[%clk 0:00:24.3]} 40. Rd7 {[%clk 0:00:02.7]} 40...
Nxf3+ {[%clk 0:00:23.9]} 41. exf3 {[%clk 0:00:03.6]} 41... Be6 {[%clk
0:00:23.9]} 42. Rda7 {[%clk 0:00:03.1]} 42... c2 {[%clk 0:00:23.9]} 43. Kg2
{[%clk 0:00:03.2]} 43... Rb1 {[%clk 0:00:23.6]} 0-1

[Event "Late-Titled-Tuesday-Blitz-March-05-2024"]
[Site "Chess.com"]
[Date "2024.03.05"]
[Round "3"]
[White "Inepton_Fermion"]
[Black "madstalk3rs"]
[Result "0-1"]
[WhiteElo "2471"]
[BlackElo "2649"]
[TimeControl "180+1"]
[EndTime "14:28:18 PST"]
[Termination "madstalk3rs won on time"]

1. Nf3 {[%clk 0:03:00.2]} 1... d5 {[%clk 0:03:00.1]} 2. b3 {[%clk 0:03:00.4]}
2... Nf6 {[%clk 0:02:59.5]} 3. Bb2 {[%clk 0:03:00.7]} 3... Bf5 {[%clk
0:03:00.4]} 4. e3 {[%clk 0:03:00.1]} 4... e6 {[%clk 0:03:00.8]} 5. d4 {[%clk
0:03:00.5]} 5... h6 {[%clk 0:03:01.1]} 6. Bd3 {[%clk 0:03:01.1]} 6... Bxd3
{[%clk 0:03:01.4]} 7. Qxd3 {[%clk 0:03:02]} 7... Bd6 {[%clk 0:03:00.8]} 8. O-O
{[%clk 0:03:02.5]} 8... O-O {[%clk 0:03:01.5]} 9. c4 {[%clk 0:03:02.9]} 9... c6
{[%clk 0:03:02.2]} 10. Nc3 {[%clk 0:03:01.3]} 10... Nbd7 {[%clk 0:03:02.9]} 11.
e4 {[%clk 0:03:01.5]} 11... dxe4 {[%clk 0:03:03.8]} 12. Nxe4 {[%clk 0:03:02.1]}
12... Nxe4 {[%clk 0:03:04.7]} 13. Qxe4 {[%clk 0:03:03]} 13... Qe7 {[%clk
0:03:03]} 14. Rad1 {[%clk 0:03:02]} 14... Rad8 {[%clk 0:03:03.2]} 15. Rfe1
{[%clk 0:03:00.9]} 15... Nf6 {[%clk 0:03:02.4]} 16. Qc2 {[%clk 0:03:00.5]} 16...
Rfe8 {[%clk 0:02:52.1]} 17. d5 {[%clk 0:02:47.8]} 17... cxd5 {[%clk 0:02:52.3]}
18. cxd5 {[%clk 0:02:48.1]} 18... Bb4 {[%clk 0:02:52.8]} 19. Bxf6 {[%clk
0:02:29.4]} 19... Qxf6 {[%clk 0:02:44]} 20. Re4 {[%clk 0:02:28.8]} 20... Bd6
{[%clk 0:02:22.4]} 21. dxe6 {[%clk 0:02:23.9]} 21... Rxe6 {[%clk 0:02:22.9]} 22.
Red4 {[%clk 0:02:12.9]} 22... Rde8 {[%clk 0:02:14.5]} 23. Qd3 {[%clk 0:01:34.5]}
23... Bc7 {[%clk 0:01:32.4]} 24. Rd7 {[%clk 0:01:23]} 24... Bb6 {[%clk
0:01:29.2]} 25. Rxb7 {[%clk 0:00:57.7]} 25... Re2 {[%clk 0:01:22.5]} 26. Rf1
{[%clk 0:00:58.2]} 26... Rxf2 {[%clk 0:01:12.5]} 27. Kh1 {[%clk 0:00:34.6]}
27... Rxf1+ {[%clk 0:00:59.3]} 28. Qxf1 {[%clk 0:00:35.5]} 28... Re3 {[%clk
0:00:32.5]} 29. Qb1 {[%clk 0:00:20.8]} 29... g6 {[%clk 0:00:30.8]} 30. Qd1
{[%clk 0:00:08.9]} 30... Kg7 {[%clk 0:00:26.9]} 31. h3 {[%clk 0:00:08.3]} 31...
g5 {[%clk 0:00:18.3]} 32. Qd5 {[%clk 0:00:07.1]} 32... Re6 {[%clk 0:00:11.4]}
33. Kh2 {[%clk 0:00:06.1]} 33... Rd6 {[%clk 0:00:10.9]} 34. Qc4 {[%clk
0:00:05.9]} 34... Be3 {[%clk 0:00:09.9]} 35. Qe2 {[%clk 0:00:02.4]} 35... Bf4+
{[%clk 0:00:10.1]} 36. Kg1 {[%clk 0:00:02.5]} 36... Qa1+ {[%clk 0:00:09.9]} 37.
Qf1 {[%clk 0:00:01.8]} 37... Rd1 {[%clk 0:00:10]} 0-1

[Event "Late-Titled-Tuesday-Blitz-March-05-2024"]
[Site "Chess.com"]
[Date "2024.03.05"]
[Round "3"]
[White "katharinareinecke"]
[Black "titomagno_64"]
[Result "0-1"]
[WhiteElo "1986"]
[BlackElo "2308"]
[TimeControl "180+1"]
[EndTime "14:28:22 PST"]
[Termination "titomagno_64 won on time"]

1. e4 {[%clk 0:03:00.9]} 1... Nf6 {[%clk 0:02:59.7]} 2. e5 {[%clk 0:02:55.2]}
2... Nd5 {[%clk 0:03:00.1]} 3. Nc3 {[%clk 0:02:52.4]} 3... Nb6 {[%clk 0:02:58]}
4. d4 {[%clk 0:02:50.2]} 4... d6 {[%clk 0:02:58.2]} 5. Nf3 {[%clk 0:02:40]} 5...
Bg4 {[%clk 0:02:57.4]} 6. Be2 {[%clk 0:02:36.2]} 6... Nc6 {[%clk 0:02:54.7]} 7.
exd6 {[%clk 0:02:14.8]} 7... exd6 {[%clk 0:02:55.6]} 8. O-O {[%clk 0:02:09.4]}
8... Be7 {[%clk 0:02:55.5]} 9. h3 {[%clk 0:02:06.2]} 9... Bh5 {[%clk 0:02:55.6]}
10. d5 {[%clk 0:01:55.9]} 10... Nb8 {[%clk 0:02:43.2]} 11. a4 {[%clk 0:01:33.2]}
11... O-O {[%clk 0:02:39.5]} 12. a5 {[%clk 0:01:32.4]} 12... N6d7 {[%clk
0:02:40.2]} 13. b4 {[%clk 0:01:30.7]} 13... Nf6 {[%clk 0:02:34.8]} 14. Bg5
{[%clk 0:01:25]} 14... Nbd7 {[%clk 0:02:34.5]} 15. Nd4 {[%clk 0:01:18.9]} 15...
Bg6 {[%clk 0:02:30.5]} 16. Bf3 {[%clk 0:01:01.4]} 16... Nxd5 {[%clk 0:02:23.4]}
17. Bxd5 {[%clk 0:00:50.7]} 17... Bxg5 {[%clk 0:02:22.8]} 18. Bxb7 {[%clk
0:00:50.4]} 18... Rb8 {[%clk 0:02:23.5]} 19. a6 {[%clk 0:00:50.4]} 19... Bf6
{[%clk 0:01:50.2]} 20. Nc6 {[%clk 0:00:48.7]} 20... Qe8 {[%clk 0:01:47.9]} 21.
Ra3 {[%clk 0:00:39.1]} 21... Ne5 {[%clk 0:01:31.9]} 22. Nxb8 {[%clk 0:00:28.2]}
22... Qxb8 {[%clk 0:01:32.8]} 23. Nd5 {[%clk 0:00:25.7]} 23... Bd8 {[%clk
0:01:33.3]} 24. f4 {[%clk 0:00:20.6]} 24... c6 {[%clk 0:01:16.5]} 25. fxe5
{[%clk 0:00:17.5]} 25... cxd5 {[%clk 0:01:16.1]} 26. Qxd5 {[%clk 0:00:17.3]}
26... dxe5 {[%clk 0:01:14.8]} 27. Re3 {[%clk 0:00:16.5]} 27... Bb6 {[%clk
0:01:14.8]} 28. Re1 {[%clk 0:00:14.3]} 28... Bxc2 {[%clk 0:01:12.3]} 29. Kh1
{[%clk 0:00:13.1]} 29... Bxe3 {[%clk 0:01:12.4]} 30. Rxe3 {[%clk 0:00:13.7]}
30... e4 {[%clk 0:01:11.2]} 31. Re2 {[%clk 0:00:11.3]} 31... Bd3 {[%clk
0:01:10.7]} 32. Re1 {[%clk 0:00:11.7]} 32... Qg3 {[%clk 0:01:10.7]} 33. Rg1
{[%clk 0:00:10.9]} 33... h6 {[%clk 0:01:07.1]} 34. Qd7 {[%clk 0:00:08.5]} 34...
Qe5 {[%clk 0:00:56]} 35. Bd5 {[%clk 0:00:07.6]} 35... Bxa6 {[%clk 0:00:49.1]}
36. b5 {[%clk 0:00:07]} 36... Bc8 {[%clk 0:00:48.4]} 37. Qc6 {[%clk 0:00:05.8]}
37... Bf5 {[%clk 0:00:45.7]} 38. Qb7 {[%clk 0:00:05.1]} 38... e3 {[%clk
0:00:43.1]} 39. Bf3 {[%clk 0:00:05.2]} 39... Qc5 {[%clk 0:00:40.1]} 40. Qc6
{[%clk 0:00:03.8]} 40... Qxc6 {[%clk 0:00:37.1]} 41. bxc6 {[%clk 0:00:04.1]}
41... Re8 {[%clk 0:00:32.5]} 42. Be2 {[%clk 0:00:03.7]} 42... Be4 {[%clk
0:00:31.9]} 43. Ra1 {[%clk 0:00:03]} 43... Bxc6 {[%clk 0:00:30.7]} 44. Rxa7
{[%clk 0:00:03]} 44... Bd5 {[%clk 0:00:30.4]} 45. Kh2 {[%clk 0:00:01.4]} 45...
f5 {[%clk 0:00:28.9]} 46. g4 {[%clk 0:00:01.7]} 46... f4 {[%clk 0:00:29.2]} 47.
Kg1 {[%clk 0:00:01.2]} 47... f3 {[%clk 0:00:29.6]} 48. Bd3 {[%clk 0:00:01.3]}
48... e2 {[%clk 0:00:27.5]} 0-1

[Event "Late-Titled-Tuesday-Blitz-March-05-2024"]
[Site "Chess.com"]
[Date "2024.03.05"]
[Round "3"]
[White "IlanSchnaider"]
[Black "masterofpuppets2"]
[Result "1-0"]
[WhiteElo "2651"]
[BlackElo "2477"]
[TimeControl "180+1"]
[EndTime "14:28:25 PST"]
[Termination "IlanSchnaider won by resignation"]

1. d4 {[%clk 0:03:00.9]} 1... d5 {[%clk 0:03:00.3]} 2. Nf3 {[%clk 0:02:59.7]}
2... c5 {[%clk 0:03:00.1]} 3. c3 {[%clk 0:02:58.6]} 3... Nf6 {[%clk 0:02:59.2]}
4. Bf4 {[%clk 0:02:55.6]} 4... Nc6 {[%clk 0:02:57.3]} 5. e3 {[%clk 0:02:54.1]}
5... Nh5 {[%clk 0:02:57.9]} 6. Be5 {[%clk 0:02:46.6]} 6... f6 {[%clk 0:02:52.5]}
7. Bg3 {[%clk 0:02:46.1]} 7... Nxg3 {[%clk 0:02:52.2]} 8. hxg3 {[%clk
0:02:46.8]} 8... Qb6 {[%clk 0:02:50.2]} 9. Qc2 {[%clk 0:02:43.1]} 9... Bf5
{[%clk 0:02:24.5]} 10. Qxf5 {[%clk 0:02:07.2]} 10... Qxb2 {[%clk 0:02:24.4]} 11.
Nfd2 {[%clk 0:02:06.8]} 11... Qxa1 {[%clk 0:02:13.6]} 12. Qc2 {[%clk 0:02:05.4]}
12... c4 {[%clk 0:02:03.5]} 13. Be2 {[%clk 0:01:54.5]} 13... e6 {[%clk
0:01:57.8]} 14. Bh5+ {[%clk 0:01:42.9]} 14... Kd7 {[%clk 0:01:57.4]} 15. O-O
{[%clk 0:01:42.4]} 15... b5 {[%clk 0:01:46]} 16. e4 {[%clk 0:01:22.9]} 16... g6
{[%clk 0:01:27]} 17. Bf3 {[%clk 0:01:15.6]} 17... Bd6 {[%clk 0:00:54.8]} 18.
exd5 {[%clk 0:01:08.7]} 18... exd5 {[%clk 0:00:55.7]} 19. Bxd5 {[%clk
0:01:06.7]} 19... Rae8 {[%clk 0:00:55.4]} 20. Ne4 {[%clk 0:01:05.9]} 20... Be7
{[%clk 0:00:51.6]} 21. Nbd2 {[%clk 0:01:04.2]} 21... Qxf1+ {[%clk 0:00:49.9]}
22. Kxf1 {[%clk 0:01:00.6]} 22... f5 {[%clk 0:00:49.9]} 23. Nc5+ {[%clk
0:00:44.9]} 23... Bxc5 {[%clk 0:00:50.2]} 24. Bxc6+ {[%clk 0:00:43.4]} 24...
Kxc6 {[%clk 0:00:50.2]} 25. dxc5 {[%clk 0:00:44.3]} 25... Rd8 {[%clk 0:00:35.6]}
26. Nf3 {[%clk 0:00:42.8]} 26... Kxc5 {[%clk 0:00:29.1]} 27. a4 {[%clk
0:00:37.3]} 27... a6 {[%clk 0:00:28.6]} 28. axb5 {[%clk 0:00:36.9]} 28... axb5
{[%clk 0:00:29.5]} 29. Qb2 {[%clk 0:00:33.5]} 29... Kb6 {[%clk 0:00:07.7]} 30.
Nd4 {[%clk 0:00:31.9]} 30... Rd5 {[%clk 0:00:07.8]} 31. Qb4 {[%clk 0:00:30.1]}
31... Rhd8 {[%clk 0:00:08.5]} 32. Ke2 {[%clk 0:00:28.3]} 32... Rxd4 {[%clk
0:00:09]} 33. cxd4 {[%clk 0:00:28.6]} 33... Rxd4 {[%clk 0:00:09.9]} 34. f3
{[%clk 0:00:25]} 34... Rd3 {[%clk 0:00:10.4]} 35. Qe7 {[%clk 0:00:22.2]} 35...
Rb3 {[%clk 0:00:09.7]} 36. Qxh7 {[%clk 0:00:20.8]} 36... c3 {[%clk 0:00:08.2]}
37. Qxg6+ {[%clk 0:00:20]} 37... Ka5 {[%clk 0:00:08.9]} 38. Qxf5 {[%clk
0:00:20.4]} 38... Rb2+ {[%clk 0:00:08]} 39. Kd3 {[%clk 0:00:20.3]} 39... c2
{[%clk 0:00:07.5]} 40. Kd2 {[%clk 0:00:20.9]} 40... Ra2 {[%clk 0:00:04.3]} 41.
Qxc2 {[%clk 0:00:18.8]} 41... Rxc2+ {[%clk 0:00:03.1]} 42. Kxc2 {[%clk
0:00:19.7]} 42... Ka4 {[%clk 0:00:03.6]} 43. Kb2 {[%clk 0:00:18.4]} 43... Kb4
{[%clk 0:00:03.8]} 44. g4 {[%clk 0:00:19.1]} 44... Kc4 {[%clk 0:00:03.8]} 45. g5
{[%clk 0:00:19.7]} 1-0